fUSD/lending_fUSD_20260615
["ID","MTS","AMOUNT","RATE_DAILY","PERIOD"]
[425102117,1781499044000,-917.66,0.00021,7]
[425102121,1781499044000,-358.31816607,0.00021004,2]
[425102118,1781499044000,-404.0,0.00021,2]
[425102115,1781499044000,-156.0,0.00021,2]
[425102120,1781499044000,-156.0,0.00021,2]
[425102116,1781499044000,-249.0,0.00021,2]
[425102198,1781499045000,-1000.0,0.000217,2]
[425102197,1781499045000,-310.0,0.000217,2]
[425102196,1781499045000,-7800.92,0.0002165,2]
[425102193,1781499045000,-151.0,0.00021605,2]
[425102191,1781499045000,-154.67963625,0.00021605,2]
[425102194,1781499045000,-2236.95670847,0.00021605,2]
[425102192,1781499045000,-187.78006524,0.00021605,2]
[425102199,1781499045000,-163.52883038,0.00021819,2]
[425102185,1781499045000,-150.0,0.00021547,2]
[425102195,1781499045000,-225.18697532,0.00021605,2]
[425102200,1781499045000,-217.15233878,0.00021878,2]
[425102207,1781499045000,-300.0,0.00022,2]
[425102206,1781499045000,-305700.03563777,0.00022,4]
[425102204,1781499045000,-307.197,0.00021993,2]
[425102203,1781499045000,-5145.544,0.00021993,2]
[425102205,1781499045000,-500.0,0.00021999,2]
[425102209,1781499045000,-450.0,0.00022,2]
[425102210,1781499045000,-560.0,0.00022,2]
[425102213,1781499045000,-172.0,0.00022,2]
[425102208,1781499045000,-1418.689983,0.00022,2]
[425102212,1781499045000,-201.0,0.00022,2]
[425102211,1781499045000,-1743.0,0.00022,2]
[425102184,1781499045000,-150.0,0.00021547,2]
[425102202,1781499045000,-5000.0,0.00021918,2]
[425102182,1781499045000,-150.0,0.00021547,2]
[425102175,1781499045000,-151.0,0.00021497,2]
[425102190,1781499045000,-265.50557866,0.00021605,2]
[425102164,1781499045000,-728.300138,0.00021497,2]
[425102163,1781499045000,-728.300138,0.00021497,2]
[425102166,1781499045000,-728.300138,0.00021497,2]
[425102168,1781499045000,-364.868956,0.00021497,2]
[425102167,1781499045000,-364.868956,0.00021497,2]
[425102165,1781499045000,-728.300138,0.00021497,2]
[425102176,1781499045000,-151.0,0.00021497,2]
[425102169,1781499045000,-364.868956,0.00021497,2]
[425102177,1781499045000,-151.0,0.00021497,2]
[425102171,1781499045000,-361.700659,0.00021497,2]
[425102215,1781499045000,-229.0,0.00022,2]
[425102173,1781499045000,-361.700659,0.00021497,2]
[425102172,1781499045000,-361.700659,0.00021497,2]
[425102170,1781499045000,-364.868956,0.00021497,2]
[425102174,1781499045000,-361.700659,0.00021497,2]
[425102178,1781499045000,-500.0,0.00021499,2]
[425102187,1781499045000,-339.72988711,0.00021605,2]
[425102186,1781499045000,-378.31669706,0.000216,2]
[425102183,1781499045000,-150.0,0.00021547,2]
[425102189,1781499045000,-200.0,0.00021605,2]
[425102188,1781499045000,-225.18697532,0.00021605,2]
[425102181,1781499045000,-150.0,0.00021547,2]
[425102180,1781499045000,-226.05413936,0.000215,2]
[425102179,1781499045000,-58563.70750585,0.000215,2]
[425102214,1781499045000,-627.0,0.00022,2]
[425102201,1781499045000,-378.31669706,0.000219,2]
[425102223,1781499045000,-156.0,0.00022,2]
[425102243,1781499045000,-565.422902,0.00022441,7]
[425102246,1781499045000,-293.26,0.00022466,2]
[425102247,1781499045000,-797.04,0.00022466,2]
[425102250,1781499045000,-3672.29801536,0.000226,2]
[425102251,1781499045000,-202.58416,0.000226,2]
[425102248,1781499045000,-700.01,0.00022466,2]
[425102256,1781499045000,-899.86,0.000227,7]
[425102257,1781499045000,-899.86,0.000227,7]
[425102255,1781499045000,-5374.0,0.00022691,2]
[425102253,1781499045000,-1846.32,0.00022691,2]
[425102254,1781499045000,-579.04,0.00022691,2]
[425102241,1781499045000,-324.58757029,0.00022407,2]
[425102249,1781499045000,-36160.56089673,0.000225,2]
[425102260,1781499045000,-154.67963625,0.00022701,2]
[425102261,1781499045000,-201.93286098,0.00022701,2]
[425102259,1781499045000,-200.0,0.00022701,2]
[425102264,1781499045000,-242.15909246,0.00022701,2]
[425102265,1781499045000,-533.07751864,0.0002271,2]
[425102266,1781499045000,-382.8766531,0.00022892,2]
[425102262,1781499045000,-151.0,0.00022701,2]
[425102263,1781499045000,-2405.55389863,0.00022701,2]
[425102267,1781499045000,-205.79262684,0.00022892,2]
[425102224,1781499045000,-244.69241804,0.0002211,2]
[425102268,1781499045000,-1018.14572728,0.00023,2]
[425102252,1781499045000,-910.68163318,0.0002261,2]
[425102242,1781499045000,-324.58757029,0.00022407,2]
[425102258,1781499045000,-339.72988711,0.00022701,2]
[425102239,1781499045000,-243.86531756,0.00022407,2]
[425102216,1781499045000,-249.0,0.00022,2]
[425102217,1781499045000,-833.0,0.00022,2]
[425102238,1781499045000,-206.21798823,0.00022407,2]
[425102220,1781499045000,-404.0,0.00022,2]
[425102221,1781499045000,-287.0,0.00022,2]
[425102219,1781499045000,-249.0,0.00022,2]
[425102218,1781499045000,-156.0,0.00022,2]
[425102222,1781499045000,-1309.79,0.00022,2]
[425102225,1781499045000,-235.795587,0.0002211,7]
[425102230,1781499045000,-194.72792766,0.00022153,2]
[425102235,1781499045000,-741.3,0.00022353,2]
[425102231,1781499045000,-151.0,0.00022153,2]
[425102232,1781499045000,-2319.72410669,0.00022153,2]
[425102229,1781499045000,-154.67963625,0.00022153,2]
[425102234,1781499045000,-308.24,0.000222,2]
[425102226,1781499045000,-339.72988711,0.00022153,2]
[425102228,1781499045000,-200.0,0.00022153,2]
[425102233,1781499045000,-233.5188934,0.00022153,2]
[425102227,1781499045000,-280.16800983,0.00022153,2]
[425102237,1781499045000,-206.21798823,0.00022407,2]
[425102236,1781499045000,-206.21798825,0.00022407,2]
[425102245,1781499045000,-359.26,0.00022466,2]
[425102240,1781499045000,-324.58757031,0.00022407,2]
[425102244,1781499045000,-174.57,0.00022466,2]
[425102297,1781499046000,-7800.92,0.00023301,7]
[425102308,1781499046000,-419.0,0.00023547,2]
[425102311,1781499046000,-712.0,0.000237,2]
[425102304,1781499046000,-1275.0,0.00023547,2]
[425102310,1781499046000,-205.79262684,0.00023595,2]
[425102309,1781499046000,-200.0,0.00023563,2]
[425102303,1781499046000,-3558.0,0.00023547,2]
[425102300,1781499046000,-3903.31807601,0.000235,30]
[425102302,1781499046000,-1359.0,0.00023547,2]
[425102306,1781499046000,-383.0,0.00023547,2]
[425102301,1781499046000,-270.707151,0.00023518,7]
[425102305,1781499046000,-631.0,0.00023547,2]
[425102315,1781499046000,-217.15233878,0.00023797,2]
[425102312,1781499046000,-339.72988711,0.00023797,2]
[425102313,1781499046000,-336.42071641,0.00023797,2]
[425102314,1781499046000,-154.67963625,0.00023797,2]
[425102316,1781499046000,-151.0,0.00023797,2]
[425102324,1781499046000,-1418.689983,0.00024,2]
[425102318,1781499046000,-260.41038111,0.00023797,2]
[425102323,1781499046000,-11187.9591107,0.00024,2]
[425102319,1781499046000,-500.0,0.00023999,2]
[425102317,1781499046000,-2586.85809042,0.00023797,2]
[425102325,1781499046000,-500.0,0.00024,2]
[425102322,1781499046000,-1259.57055186,0.00024,2]
[425102320,1781499046000,-1041.68344963,0.00024,2]
[425102295,1781499046000,-166.08457987,0.0002326,21]
[425102307,1781499046000,-934.0,0.00023547,2]
[425102292,1781499046000,-151.0,0.00023249,2]
[425102273,1781499046000,-172.0,0.00023,2]
[425102293,1781499046000,-2494.55939288,0.00023249,2]
[425102321,1781499046000,-3600.0,0.00024,2]
[425102269,1781499046000,-1418.689983,0.00023,2]
[425102270,1781499046000,-560.0,0.00023,2]
[425102271,1781499046000,-1743.0,0.00023,2]
[425102272,1781499046000,-201.0,0.00023,2]
[425102274,1781499046000,-627.0,0.00023,2]
[425102275,1781499046000,-229.0,0.00023,2]
[425102279,1781499046000,-249.0,0.00023,2]
[425102276,1781499046000,-249.0,0.00023,2]
[425102281,1781499046000,-287.0,0.00023,2]
[425102282,1781499046000,-156.0,0.00023,2]
[425102278,1781499046000,-156.0,0.00023,2]
[425102298,1781499046000,-273.837859,0.00023304,7]
[425102285,1781499046000,-599.60298507,0.00023248,2]
[425102277,1781499046000,-833.0,0.00023,2]
[425102283,1781499046000,-397.21705959,0.000232,2]
[425102287,1781499046000,-747.80937859,0.00023248,2]
[425102286,1781499046000,-151.0,0.00023248,2]
[425102284,1781499046000,-225.18697532,0.00023247,2]
[425102289,1781499046000,-200.0,0.00023249,2]
[425102299,1781499046000,-238.688771,0.00023323,7]
[425102288,1781499046000,-339.72988711,0.00023249,2]
[425102291,1781499046000,-209.40437684,0.00023249,2]
[425102290,1781499046000,-154.67963625,0.00023249,2]
[425102294,1781499046000,-251.11897888,0.00023249,2]
[425102296,1781499046000,-177.45,0.00023288,2]
[425102280,1781499046000,-404.0,0.00023,2]
[425102326,1781499046000,-560.0,0.00024,2]
[425102365,1781499046000,-1169.28,0.00024658,2]
[425102327,1781499046000,-1743.0,0.00024,2]
[425102356,1781499046000,-200.0,0.000246,2]
[425102360,1781499046000,-597.17105034,0.00024658,2]
[425102352,1781499046000,-150.0,0.00024547,2]
[425102362,1781499046000,-236.866385,0.00024658,2]
[425102363,1781499046000,-236.866385,0.00024658,2]
[425102377,1781499046000,-1309.79,0.00024692,7]
[425102376,1781499046000,-265.422772,0.00024658,2]
[425102364,1781499046000,-236.866385,0.00024658,2]
[425102375,1781499046000,-265.422772,0.00024658,2]
[425102369,1781499046000,-361.328383,0.00024658,2]
[425102366,1781499046000,-1000.0,0.00024658,2]
[425102368,1781499046000,-361.328383,0.00024658,2]
[425102357,1781499046000,-173.0,0.00024604,3]
[425102372,1781499046000,-151.0,0.00024658,2]
[425102367,1781499046000,-361.328383,0.00024658,2]
[425102370,1781499046000,-361.328383,0.00024658,2]
[425102373,1781499046000,-265.422772,0.00024658,2]
[425102371,1781499046000,-151.0,0.00024658,2]
[425102378,1781499046000,-339.72988711,0.00024893,2]
[425102381,1781499046000,-2781.82699784,0.00024893,2]
[425102383,1781499046000,-500.0,0.00024899,2]
[425102385,1781499046000,-500.0,0.00024899,2]
[425102379,1781499046000,-233.5188934,0.00024893,2]
[425102384,1781499046000,-500.0,0.00024899,2]
[425102382,1781499046000,-151.0,0.00024897,7]
[425102328,1781499046000,-201.0,0.00024,2]
[425102374,1781499046000,-265.422772,0.00024658,2]
[425102361,1781499046000,-236.866385,0.00024658,2]
[425102380,1781499046000,-157.78306428,0.00024893,2]
[425102359,1781499046000,-3000.0,0.00024658,2]
[425102333,1781499046000,-833.0,0.00024,2]
[425102331,1781499046000,-229.0,0.00024,2]
[425102332,1781499046000,-249.0,0.00024,2]
[425102335,1781499046000,-249.0,0.00024,2]
[425102355,1781499046000,-150.0,0.00024547,2]
[425102329,1781499046000,-172.0,0.00024,2]
[425102330,1781499046000,-627.0,0.00024,2]
[425102337,1781499046000,-150.0,0.00024,2]
[425102334,1781499046000,-156.0,0.00024,2]
[425102336,1781499046000,-404.0,0.00024,2]
[425102340,1781499046000,-314.35,0.0002411,2]
[425102350,1781499046000,-147644.44170597,0.00024497,2]
[425102339,1781499046000,-165.93727348,0.00024,2]
[425102343,1781499046000,-10820.47015001,0.0002429,7]
[425102341,1781499046000,-256.6,0.0002411,2]
[425102344,1781499046000,-205.79262684,0.00024297,2]
[425102347,1781499046000,-225.18697532,0.00024345,2]
[425102345,1781499046000,-741.3,0.00024324,2]
[425102346,1781499046000,-339.72988711,0.00024345,2]
[425102348,1781499046000,-151.0,0.00024345,2]
[425102349,1781499046000,-2682.57183977,0.00024345,2]
[425102351,1781499046000,-150.0,0.00024547,2]
[425102358,1781499046000,-157.37535454,0.00024638,2]
[425102354,1781499046000,-150.0,0.00024547,2]
[425102353,1781499046000,-150.0,0.00024547,2]
[425102342,1781499046000,-3769.55351799,0.0002421,2]
[425102338,1781499046000,-287.0,0.00024,2]
[425102386,1781499047000,-500.0,0.00024899,2]
[425102387,1781499047000,-570486.93868955,0.000249,3]
[425102392,1781499047000,-2410.21060325,0.000249,3]
[425102394,1781499047000,-1130.8847021,0.000249,3]
[425102391,1781499047000,-69099.88111406,0.000249,3]
[425102393,1781499047000,-504.28224,0.000249,3]
[425102403,1781499048000,-193.97543773,0.00012017,2]
[425102402,1781499048000,-410.02456227,0.00012017,2]
[425102401,1781499048000,-89.97543773,0.00012017,2]
[425102400,1781499048000,-500.0,0.00012017,2]
[425102399,1781499048000,-89.41679592,0.00012017,2]
[425102398,1781499048000,-399.10043024,0.00012017,2]
[425102397,1781499048000,-11.48277384,0.00012017,2]
[425102396,1781499048000,-429.33522616,0.00012017,2]
[425102395,1781499048000,-70.66477384,0.00012017,2]
[425102405,1781499051000,-500.0,0.00012017,2]
[425102404,1781499051000,-306.02456227,0.00012017,2]
[425102406,1781499051000,-102.36168273,0.00012017,2]
[425102407,1781499051000,-320.7375,0.00012017,2]
[425102408,1781499082000,-300.0,0.00012016,2]
[425102409,1781499097000,2720.22215988,7.945e-05,2]
[425102410,1781499100000,-150.0,7.945e-05,2]
[425102411,1781499135000,-445.64,7.945e-05,2]
[425102413,1781499135000,-265.8063781,0.00011217,2]
[425102414,1781499135000,-150.0,0.00012016,2]
[425102415,1781499135000,-76.90081727,0.00012017,2]
[425102412,1781499135000,-1746.63380912,7.945e-05,2]
[425102418,1781499135000,-500.0,0.00012017,2]
[425102417,1781499135000,-239.44331472,0.00012017,2]
[425102419,1781499135000,-500.0,0.00012017,2]
[425102420,1781499135000,-65.17461132,0.00012017,2]
[425102416,1781499135000,-260.55668528,0.00012017,2]
[425102431,1781499136000,-500.0,0.00012017,2]
[425102429,1781499136000,-263.18946754,0.00012017,2]
[425102427,1781499136000,-500.0,0.00012017,2]
[425102428,1781499136000,-236.81053246,0.00012017,2]
[425102426,1781499136000,-500.0,0.00012017,2]
[425102425,1781499136000,-500.0,0.00012017,2]
[425102423,1781499136000,-263.08715731,0.00012017,2]
[425102421,1781499136000,-434.82538868,0.00012017,2]
[425102422,1781499136000,-236.91284269,0.00012017,2]
[425102430,1781499136000,-500.0,0.00012017,2]
[425102424,1781499136000,-500.0,0.00012017,2]
[425102432,1781499136000,-500.0,0.00012017,2]
[425102439,1781499136000,-80.86136217,0.00012017,2]
[425102433,1781499136000,-397.80739693,0.00012017,2]
[425102435,1781499136000,-500.0,0.00012017,2]
[425102437,1781499136000,-500.0,0.00012017,2]
[425102436,1781499136000,-500.0,0.00012017,2]
[425102438,1781499136000,-500.0,0.00012017,2]
[425102441,1781499136000,-500.0,0.00012017,2]
[425102442,1781499136000,-500.0,0.00012017,2]
[425102440,1781499136000,-419.13863783,0.00012017,2]
[425102444,1781499136000,-249.95301003,0.00012017,2]
[425102443,1781499136000,-250.04698997,0.00012017,2]
[425102445,1781499136000,-500.0,0.00012017,2]
[425102434,1781499136000,-102.19260307,0.00012017,2]
[425102446,1781499136000,-500.0,0.00012017,2]
[425102449,1781499137000,-500.0,0.00012017,2]
[425102447,1781499137000,-232.02698997,0.00012017,2]
[425102448,1781499137000,-104.54603172,0.00012017,2]
[425102451,1781499137000,-395.45396828,0.00012017,2]
[425102452,1781499137000,-104.54603172,0.00012017,2]
[425102454,1781499137000,-347.97242586,0.000123,2]
[425102450,1781499137000,-500.0,0.00012017,2]
[425102453,1781499137000,-500.0,0.00012017,2]
[425102466,1781499158000,2499.89768977,0.00012798,2]
[425102455,1781499158000,1547.37923219,0.00012798,2]
[425102456,1781499158000,1644.44069364,0.00012798,2]
[425102457,1781499158000,2499.89768977,0.00012798,2]
[425102460,1781499158000,1650.0,0.00012798,2]
[425102459,1781499158000,203.56087742,0.00012798,2]
[425102461,1781499158000,1500.0,0.00012798,2]
[425102463,1781499158000,1857.01030647,0.00012798,2]
[425102464,1781499158000,1500.0,0.00012798,2]
[425102465,1781499158000,1505.03,0.00012798,2]
[425102462,1781499158000,1684.24773229,0.00012798,2]
[425102458,1781499158000,2499.89768977,0.00012798,2]
[425102467,1781499161000,-186.0,0.00012798,2]
[425102469,1781499205000,-244.04734745,0.00011998,2]
[425102470,1781499258000,-374.898673,0.00011518,2]
[425102471,1781499312000,-187.4493364,0.00011518,2]
[425102472,1781499365000,-500.0,0.00011916,2]
[425102473,1781499418000,-186.06142796,0.00011998,2]
[425102474,1781499472000,-4034.0482275,0.00011532,2]
[425102479,1781499525000,-177.283235,0.00012058,2]
[425102480,1781499634000,2699.03671856,0.0003013,120]
[425102481,1781499724000,12607.1000835,0.0003013,120]
[425102482,1781499745000,-404.30959214,0.0001135,2]
[425102484,1781499798000,-150.0,0.00011522,2]
[425102486,1781499852000,-500.0,0.00011523,2]
[425102487,1781499887000,4994.500899,0.0003013,120]
[425102493,1781499905000,-741.3,0.00011424,2]
[425102494,1781499925000,-1412.15853,0.00011424,2]
[425102506,1781499932000,-604.40147324,0.00011522,2]
[425102507,1781499932000,-500.0,0.00011522,2]
[425102503,1781499932000,-382.226194,0.00011522,2]
[425102509,1781499932000,-500.0,0.00011522,2]
[425102499,1781499932000,-150.0,0.00011473,2]
[425102502,1781499932000,-500.0,0.00011522,2]
[425102501,1781499932000,-367.34379892,0.00011522,2]
[425102500,1781499932000,-250.06193204,0.00011522,2]
[425102505,1781499932000,-500.0,0.00011522,2]
[425102508,1781499932000,-500.0,0.00011522,2]
[425102504,1781499932000,-411.49318,0.00011522,2]
[425102510,1781499932000,-500.0,0.00011522,2]
[425102511,1781499932000,-500.0,0.00011522,2]
[425102520,1781499932000,-207.73468349,0.00011522,2]
[425102518,1781499932000,-500.0,0.00011522,2]
[425102517,1781499932000,-500.0,0.00011522,2]
[425102519,1781499932000,-500.0,0.00011522,2]
[425102514,1781499932000,-500.0,0.00011522,2]
[425102515,1781499932000,-500.0,0.00011522,2]
[425102512,1781499932000,-500.0,0.00011522,2]
[425102513,1781499932000,-500.0,0.00011522,2]
[425102516,1781499932000,-626.73873831,0.00011522,2]
[425102525,1781499933000,-500.0,0.00011522,2]
[425102522,1781499933000,-500.0,0.00011522,2]
[425102521,1781499933000,-292.26531651,0.00011522,2]
[425102524,1781499933000,-500.0,0.00011522,2]
[425102523,1781499933000,-500.0,0.00011522,2]
[425102526,1781499933000,-500.0,0.00011522,2]
[425102529,1781499933000,-500.0,0.00011522,2]
[425102527,1781499933000,-500.0,0.00011522,2]
[425102530,1781499933000,-500.0,0.00011522,2]
[425102532,1781499933000,-500.0,0.00011522,2]
[425102531,1781499933000,-500.0,0.00011522,2]
[425102533,1781499933000,-500.0,0.00011522,2]
[425102528,1781499933000,-500.0,0.00011522,2]
[425102534,1781499934000,-500.0,0.00011522,2]
[425102535,1781499934000,-500.0,0.00011522,2]
[425102536,1781499934000,-500.0,0.00011522,2]
[425102541,1781499934000,-207.73468349,0.00011522,2]
[425102539,1781499934000,-500.0,0.00011522,2]
[425102538,1781499934000,-500.0,0.00011522,2]
[425102540,1781499934000,-500.0,0.00011522,2]
[425102537,1781499934000,-500.0,0.00011522,2]
[425102543,1781499935000,-500.0,0.00011522,2]
[425102542,1781499935000,-292.26531651,0.00011522,2]
[425102544,1781499935000,-500.0,0.00011522,2]
[425102545,1781499935000,-500.0,0.00011522,2]
[425102548,1781499935000,-500.0,0.00011522,2]
[425102546,1781499935000,-500.0,0.00011522,2]
[425102549,1781499935000,-500.0,0.00011522,2]
[425102551,1781499935000,-500.0,0.00011522,2]
[425102550,1781499935000,-450.0,0.00011522,2]
[425102552,1781499935000,-500.0,0.00011522,2]
[425102553,1781499935000,-500.0,0.00011522,2]
[425102554,1781499935000,-4257.73468349,0.00011524,2]
[425102547,1781499935000,-500.0,0.00011522,2]
[425102555,1781499936000,-10000.0,0.00011524,2]
[425102556,1781499937000,-10000.0,0.00011524,2]
[425102557,1781499938000,-10000.0,0.00011524,2]
[425102558,1781499944000,-1489.0,0.00011524,2]
[425102561,1781499974000,-8227.50240847,0.00011524,2]
[425102562,1781499994000,-150.0,0.00011523,2]
[425102563,1781500025000,-300.0,0.00011523,2]
[425102565,1781500025000,-9087.478009,0.00011524,2]
[425102564,1781500025000,-612.521991,0.00011523,2]
[425102566,1781500026000,-10000.0,0.00011524,2]
[425102567,1781500027000,-10000.0,0.00011524,2]
[425102568,1781500028000,-300.0,0.00011524,2]
[425102569,1781500028000,-9700.0,0.00011524,2]
[425102571,1781500043000,-10000.0,0.00011524,2]
[425102570,1781500043000,-8227.50240847,0.00011524,2]
[425102572,1781500048000,-10000.0,0.00011524,2]
[425102573,1781500065000,-7064.63245703,0.00011524,2]
[425102574,1781500067000,-300.0,0.00011524,2]
[425102575,1781500091000,-158.73,9.133e-05,2]
[425102587,1781500093000,-150.0,0.00011543,2]
[425102585,1781500093000,-216.09656886,0.00011534,2]
[425102584,1781500093000,-2034.4458291,0.00011531,2]
[425102583,1781500093000,-301.95849375,0.00011531,2]
[425102582,1781500093000,-349.99719996,0.00011527,2]
[425102576,1781500093000,-200.0,0.00010949,2]
[425102577,1781500093000,-612.0,0.000115,2]
[425102580,1781500093000,-19708.2866458,0.00011524,2]
[425102579,1781500093000,-117693.94009664,0.00011524,2]
[425102578,1781500093000,-4137.6791357,0.00011523,2]
[425102588,1781500093000,-8574.72,0.00011575,2]
[425102581,1781500093000,-500.0,0.00011527,2]
[425102589,1781500093000,-166.46,0.00011599,2]
[425102586,1781500093000,-160.0,0.00011534,2]
[425102593,1781500093000,-2153.45852998,0.0001181,2]
[425102591,1781500093000,-521.62353237,0.00011629,2]
[425102602,1781500093000,-434.27,0.00012546,2]
[425102599,1781500093000,-165.11,0.00012218,2]
[425102600,1781500093000,-20000.0,0.000123,2]
[425102601,1781500093000,-171.49,0.00012429,2]
[425102596,1781500093000,-1852.42,0.0001215,2]
[425102598,1781500093000,-2153.45852998,0.00012196,2]
[425102595,1781500093000,-500.0,0.0001201,2]
[425102594,1781500093000,-200.0,0.0001201,2]
[425102592,1781500093000,-150.0,0.00011658,2]
[425102590,1781500093000,-613.04,0.00011599,2]
[425102597,1781500093000,-358.35,0.00012173,2]
[425102603,1781500093000,-184.03,0.00012559,2]
[425102612,1781500094000,-250.0,0.00012676,2]
[425102615,1781500094000,-157.37535454,0.00012698,2]
[425102614,1781500094000,-6824.0566,0.00012698,2]
[425102613,1781500094000,-2692.68900525,0.00012698,2]
[425102610,1781500094000,-300.0,0.00012675,2]
[425102605,1781500094000,-250.0,0.00012566,2]
[425102606,1781500094000,-2153.45852998,0.00012583,2]
[425102608,1781500094000,-4000.0,0.00012675,2]
[425102609,1781500094000,-193.30679065,0.00012675,2]
[425102607,1781500094000,-150.0,0.00012637,2]
[425102604,1781500094000,-193.26486441,0.00012566,2]
[425102616,1781500094000,-2947.65050316,0.00012698,2]
[425102611,1781500094000,-500.0,0.00012676,2]
[425102620,1781500094000,-2147752.22728868,0.00012798,2]
[425102624,1781500094000,-654.44,0.00012882,2]
[425102619,1781500094000,-159.39086604,0.00012788,2]
[425102617,1781500094000,-8634.49479287,0.00012698,2]
[425102628,1781500094000,-824.71449065,0.00013013,2]
[425102630,1781500094000,-756.715304,0.00013098,2]
[425102631,1781500094000,-503.55313995,0.00013098,2]
[425102629,1781500094000,-159.39086604,0.0001309,2]
[425102627,1781500094000,-883.28730136,0.00013,2]
[425102632,1781500094000,-628098.91621647,0.000131,2]
[425102625,1781500094000,-2947.65050316,0.00012943,2]
[425102623,1781500094000,-434.27,0.00012859,2]
[425102622,1781500094000,-187.14,0.00012829,2]
[425102621,1781500094000,-151.0,0.00012798,2]
[425102626,1781500094000,-2153.45852998,0.00012969,2]
[425102618,1781500094000,-824.71449067,0.00012698,2]
[425102645,1781500165000,-1169.0237,0.00011422,2]
[425102649,1781500209000,150.68106,0.00011531,7]
[425102650,1781500231000,-259.84831588,0.00012108,7]
[425102670,1781500237000,-500.0,0.00012797,2]
[425102666,1781500237000,-13283.24588734,0.00012793,2]
[425102664,1781500237000,-764.92987787,0.00012793,2]
[425102675,1781500237000,-500.0,0.00012797,2]
[425102671,1781500237000,-500.0,0.00012797,2]
[425102673,1781500237000,-500.0,0.00012797,2]
[425102665,1781500237000,-6081.15644928,0.00012793,2]
[425102667,1781500237000,-500.0,0.00012797,2]
[425102669,1781500237000,-500.0,0.00012797,2]
[425102655,1781500237000,-152.0,0.00012108,2]
[425102663,1781500237000,-1784.80487419,0.00012793,2]
[425102662,1781500237000,-567.96871902,0.00012793,2]
[425102676,1781500237000,-500.0,0.00013099,2]
[425102661,1781500237000,-160.0,0.00012698,2]
[425102657,1781500237000,-150.0,0.00012336,2]
[425102658,1781500237000,-497.12671407,0.00012564,2]
[425102656,1781500237000,-152.0,0.00012108,2]
[425102660,1781500237000,-374.89932811,0.00012698,2]
[425102659,1781500237000,-25.87328593,0.00012698,2]
[425102668,1781500237000,-500.0,0.00012797,2]
[425102679,1781500237000,-500.0,0.00013099,2]
[425102691,1781500237000,-500.0,0.00013099,2]
[425102674,1781500237000,-500.0,0.00012797,2]
[425102678,1781500237000,-500.0,0.00013099,2]
[425102697,1781500237000,-500.0,0.00013099,2]
[425102698,1781500237000,-500.0,0.00013099,2]
[425102696,1781500237000,-500.0,0.00013099,2]
[425102693,1781500237000,-500.0,0.00013099,2]
[425102695,1781500237000,-500.0,0.00013099,2]
[425102692,1781500237000,-500.0,0.00013099,2]
[425102688,1781500237000,-500.0,0.00013099,2]
[425102686,1781500237000,-500.0,0.00013099,2]
[425102690,1781500237000,-500.0,0.00013099,2]
[425102694,1781500237000,-500.0,0.00013099,2]
[425102684,1781500237000,-500.0,0.00013099,2]
[425102687,1781500237000,-500.0,0.00013099,2]
[425102685,1781500237000,-500.0,0.00013099,2]
[425102682,1781500237000,-500.0,0.00013099,2]
[425102683,1781500237000,-500.0,0.00013099,2]
[425102681,1781500237000,-500.0,0.00013099,2]
[425102680,1781500237000,-500.0,0.00013099,2]
[425102672,1781500237000,-500.0,0.00012797,2]